[Event "Titled Tuesday Blitz January 17 Late 2023"]
[White "Dylag, Emilia"]
[Black "Mosquera, Miguel"]
[WhiteFideId "21805172"]
[BlackFideId "4401131"]
[WhiteElo "2095"]
[BlackElo "2371"]
[Result "1/2-1/2"]
[Round "01"]
[TimeControl "180+2"]
[Date "2023.01.17"]
[WhiteClock "0:00:12"]
[BlackClock "0:00:11"]

1. d4 {[%clk 0:03:00]}  d5 {[%clk 0:02:52]} 2. c4 {[%clk 0:03:00]}  Nf6 {[%clk 0:02:53]} 3. Nf3 {[%clk 0:02:58]}  e6 {[%clk 0:02:53]} 4. g3 {[%clk 0:02:54]}  Bb4+ {[%clk 0:02:47]} 5. Nbd2 {[%clk 0:02:50]}  dxc4 {[%clk 0:02:45]} 6. Bg2 {[%clk 0:02:49]}  b5 {[%clk 0:02:16]} 7. O-O {[%clk 0:02:40]}  O-O {[%clk 0:02:08]} 8. a3 {[%clk 0:02:40]}  Be7 {[%clk 0:02:00]} 9. b3 {[%clk 0:02:39]}  cxb3 {[%clk 0:01:56]} 10. Qxb3 {[%clk 0:02:38]}  c6 {[%clk 0:01:56]} 11. Bb2 {[%clk 0:02:37]}  Bb7 {[%clk 0:01:55]} 12. e4 {[%clk 0:02:37]}  a5 {[%clk 0:01:53]} 13. a4 {[%clk 0:02:29]}  Nbd7 {[%clk 0:01:44]} 14. Rac1 {[%clk 0:02:26]}  c5 {[%clk 0:01:36]} 15. axb5 {[%clk 0:02:22]}  Nxe4 {[%clk 0:01:30]} 16. Rfe1 {[%clk 0:02:06]}  Nxd2 {[%clk 0:01:19]} 17. Nxd2 {[%clk 0:02:06]}  Bxg2 {[%clk 0:01:20]} 18. Kxg2 {[%clk 0:02:07]}  a4 {[%clk 0:01:15]} 19. Qe3 {[%clk 0:01:54]}  Bg5 {[%clk 0:01:09]} 20. f4 {[%clk 0:01:52]}  Bf6 {[%clk 0:01:10]} 21. Ne4 {[%clk 0:01:50]}  cxd4 {[%clk 0:01:05]} 22. Bxd4 {[%clk 0:01:50]}  Bxd4 {[%clk 0:01:04]} 23. Qxd4 {[%clk 0:01:50]}  Nb6 {[%clk 0:00:53]} 24. Qe3 {[%clk 0:01:27]}  a3 {[%clk 0:00:42]} 25. Red1 {[%clk 0:01:27]}  Nd5 {[%clk 0:00:43]} 26. Qd3 {[%clk 0:01:20]}  Qb6 {[%clk 0:00:25]} 27. Re1 {[%clk 0:01:12]}  a2 {[%clk 0:00:24]} 28. Ng5 {[%clk 0:01:11]}  g6 {[%clk 0:00:22]} 29. Ne4 {[%clk 0:00:58]}  Rfd8 {[%clk 0:00:21]} 30. Qb3 {[%clk 0:00:54]}  Ra5 {[%clk 0:00:14]} 31. Rc2 {[%clk 0:00:46]}  Rxb5 {[%clk 0:00:11]} 32. Qxa2 {[%clk 0:00:45]}  Ne3+ {[%clk 0:00:12]} 33. Rxe3 {[%clk 0:00:43]}  Qxe3 {[%clk 0:00:11]} 34. Nf6+ {[%clk 0:00:41]}  Kg7 {[%clk 0:00:10]} 35. Qa1 {[%clk 0:00:40]}  Qd4 {[%clk 0:00:10]} 36. Qxd4 {[%clk 0:00:36]}  Rxd4 {[%clk 0:00:11]} 37. Ng4 {[%clk 0:00:34]}  Rbd5 {[%clk 0:00:12]} 38. Kh3 {[%clk 0:00:26]}  Rh5+ {[%clk 0:00:11]} 39. Kg2 {[%clk 0:00:25]}  Rhd5 {[%clk 0:00:12]} 40. Kh3 {[%clk 0:00:25]}  Rd7 {[%clk 0:00:13]} 41. Ne5 {[%clk 0:00:23]}  R7d5 {[%clk 0:00:13]} 42. Rc7 {[%clk 0:00:23]}  Rxe5 {[%clk 0:00:09]} 43. fxe5 {[%clk 0:00:22]}  Rd5 {[%clk 0:00:10]} 44. Rc4 {[%clk 0:00:19]}  Rxe5 {[%clk 0:00:09]} 45. Rf4 {[%clk 0:00:20]}  Rf5 {[%clk 0:00:08]} 46. Re4 {[%clk 0:00:20]}  Kf6 {[%clk 0:00:09]} 47. Re2 {[%clk 0:00:18]}  Re5 {[%clk 0:00:09]} 48. Rf2+ {[%clk 0:00:18]}  Kg7 {[%clk 0:00:10]} 49. Rd2 {[%clk 0:00:18]}  f5 {[%clk 0:00:10]} 50. Rf2 {[%clk 0:00:18]}  Rd5 {[%clk 0:00:10]} 51. Rc2 {[%clk 0:00:17]}  h5 {[%clk 0:00:10]} 52. Kg2 {[%clk 0:00:17]}  Kf6 {[%clk 0:00:11]} 53. h4 {[%clk 0:00:17]}  Rd6 {[%clk 0:00:11]} 54. Re2 {[%clk 0:00:16]}  e5 {[%clk 0:00:11]} 55. Rc2 {[%clk 0:00:15]}  e4 {[%clk 0:00:12]} 56. Rb2 {[%clk 0:00:14]}  Ke5 {[%clk 0:00:12]} 57. Kf2 {[%clk 0:00:14]}  Kd4 {[%clk 0:00:12]} 58. Rb4+ {[%clk 0:00:13]}  Ke5 {[%clk 0:00:12]} 59. Rb5+ {[%clk 0:00:13]}  Rd5 {[%clk 0:00:13]} 60. Rb6 {[%clk 0:00:13]}  Rd6 {[%clk 0:00:13]} 61. Rb5+ {[%clk 0:00:14]}  Kf6 {[%clk 0:00:14]} 62. Rb4 {[%clk 0:00:14]}  Rc6 {[%clk 0:00:14]} 63. Ra4 {[%clk 0:00:13]}  Rc2+ {[%clk 0:00:14]} 64. Ke3 {[%clk 0:00:13]}  Rc3+ {[%clk 0:00:14]} 65. Kf2 {[%clk 0:00:13]}  Rf3+ {[%clk 0:00:13]} 66. Kg2 {[%clk 0:00:13]}  Rd3 {[%clk 0:00:12]} 67. Ra6+ {[%clk 0:00:12]}  Kg7 {[%clk 0:00:12]} 68. Ra7+ {[%clk 0:00:12]}  Kh6 {[%clk 0:00:12]} 69. Ra6 {[%clk 0:00:11]}  Rb3 {[%clk 0:00:12]} 70. Ra4 {[%clk 0:00:10]}  Rb2+ {[%clk 0:00:12]} 71. Kh3 {[%clk 0:00:10]}  e3 {[%clk 0:00:13]} 72. Ra1 {[%clk 0:00:10]}  Kg7 {[%clk 0:00:12]} 73. Re1 {[%clk 0:00:10]}  Kf6 {[%clk 0:00:12]} 74. Rxe3 {[%clk 0:00:10]}  Rb4 {[%clk 0:00:11]} 75. Re2 {[%clk 0:00:09]}  Rd4 {[%clk 0:00:12]} 76. Re1 {[%clk 0:00:09]}  Rd2 {[%clk 0:00:13]} 77. Re3 {[%clk 0:00:09]}  Rc2 {[%clk 0:00:12]} 78. Re1 {[%clk 0:00:08]}  Rc4 {[%clk 0:00:11]} 79. Re3 {[%clk 0:00:08]}  f4 {[%clk 0:00:11]} 80. gxf4 {[%clk 0:00:07]}  Rxf4 {[%clk 0:00:12]} 81. Rg3 {[%clk 0:00:07]}  Kf5 {[%clk 0:00:13]} 82. Rg5+ {[%clk 0:00:07]}  Kf6 {[%clk 0:00:13]} 83. Rg3 {[%clk 0:00:07]}  Re4 {[%clk 0:00:12]} 84. Rg2 {[%clk 0:00:07]}  Re3+ {[%clk 0:00:07]} 85. Kh2 {[%clk 0:00:07]}  Re4 {[%clk 0:00:07]} 86. Kh3 {[%clk 0:00:06]}  Re1 {[%clk 0:00:07]} 87. Kh2 {[%clk 0:00:05]}  Rb1 {[%clk 0:00:06]} 88. Rf2+ {[%clk 0:00:05]}  Kg7 {[%clk 0:00:06]} 89. Kh3 {[%clk 0:00:05]}  Kh6 {[%clk 0:00:07]} 90. Rf6 {[%clk 0:00:05]}  Rb3+ {[%clk 0:00:07]} 91. Kh2 {[%clk 0:00:05]}  Rb4 {[%clk 0:00:08]} 92. Kh3 {[%clk 0:00:05]}  Rg4 {[%clk 0:00:09]} 93. Rd6 {[%clk 0:00:04]}  Kg7 {[%clk 0:00:09]} 94. Rd7+ {[%clk 0:00:04]}  Kh6 {[%clk 0:00:09]} 95. Rd6 {[%clk 0:00:04]}  Rf4 {[%clk 0:00:10]} 96. Rd3 {[%clk 0:00:04]}  Kg7 {[%clk 0:00:09]} 97. Rg3 {[%clk 0:00:04]}  Kf6 {[%clk 0:00:07]} 98. Rc3 {[%clk 0:00:04]}  Re4 {[%clk 0:00:07]} 99. Rf3+ {[%clk 0:00:04]}  Ke5 {[%clk 0:00:07]} 100. Rg3 {[%clk 0:00:04]}  Kf5 {[%clk 0:00:07]} 101. Rf3+ {[%clk 0:00:04]}  Rf4 {[%clk 0:00:07]} 102. Rg3 {[%clk 0:00:05]}  Rg4 {[%clk 0:00:07]} 103. Ra3 {[%clk 0:00:03]}  Ke5 {[%clk 0:00:07]} 104. Ra5+ {[%clk 0:00:03]}  Kf4 {[%clk 0:00:07]} 105. Ra4+ {[%clk 0:00:03]}  Kf3 {[%clk 0:00:08]} 106. Ra3+ {[%clk 0:00:04]}  Ke2 {[%clk 0:00:09]} 107. Ra2+ {[%clk 0:00:04]}  Kd3 {[%clk 0:00:09]} 108. Ra3+ {[%clk 0:00:04]}  Kc2 {[%clk 0:00:09]} 109. Ra6 {[%clk 0:00:04]}  Rg1 {[%clk 0:00:08]} 110. Ra2+ {[%clk 0:00:04]}  Kb3 {[%clk 0:00:08]} 111. Ra7 {[%clk 0:00:04]}  Rh1+ {[%clk 0:00:09]} 112. Kg3 {[%clk 0:00:03]}  Kc4 {[%clk 0:00:08]} 113. Ra6 {[%clk 0:00:03]}  Kb5 {[%clk 0:00:08]} 114. Re6 {[%clk 0:00:03]}  Rg1+ {[%clk 0:00:09]} 115. Kh3 {[%clk 0:00:03]}  Rg4 {[%clk 0:00:10]} 116. Re5+ {[%clk 0:00:03]}  Kc6 {[%clk 0:00:10]} 117. Re3 {[%clk 0:00:04]}  Kd6 {[%clk 0:00:11]} 118. Rd3+ {[%clk 0:00:04]}  Ke5 {[%clk 0:00:11]} 119. Re3+ {[%clk 0:00:05]}  Kf4 {[%clk 0:00:11]} 120. Ra3 {[%clk 0:00:05]}  g5 {[%clk 0:00:10]} 121. Ra4+ {[%clk 0:00:05]}  Kf5 {[%clk 0:00:10]} 122. Ra5+ {[%clk 0:00:05]}  Kf4 {[%clk 0:00:11]} 123. Rxg5 {[%clk 0:00:06]}  Rxg5 {[%clk 0:00:12]} 124. hxg5 {[%clk 0:00:06]}  Kxg5 {[%clk 0:00:13]} 125. Kh2 {[%clk 0:00:07]}  Kh4 {[%clk 0:00:13]} 126. Kh1 {[%clk 0:00:08]}  Kg3 {[%clk 0:00:13]} 127. Kg1 {[%clk 0:00:09]}  Kh3 {[%clk 0:00:13]} 128. Kh1 {[%clk 0:00:10]}  Kh4 {[%clk 0:00:14]} 129. Kg1 {[%clk 0:00:11]}  Kg4 {[%clk 0:00:14]} 130. Kh1 {[%clk 0:00:12]}  h4 {[%clk 0:00:11]} 1/2-1/2


[Site "https://www.chess.com"]

[Event "Titled Tuesday Blitz January 17 Late 2023"]
[White "Jorajuria Mendoza, Algol"]
[Black "Ismagilov, Damir"]
[WhiteFideId "5128897"]
[BlackFideId "34199982"]
[WhiteElo "2069"]
[BlackElo "2156"]
[Result "0-1"]
[Round "01"]
[TimeControl "180+2"]
[Date "2023.01.17"]
[WhiteClock "0:00:11"]
[BlackClock "0:00:28"]

1. e4 {[%clk 0:02:55]}  d6 {[%clk 0:02:58]} 2. Nf3 {[%clk 0:02:54]}  e5 {[%clk 0:02:51]} 3. d4 {[%clk 0:02:53]}  exd4 {[%clk 0:02:50]} 4. Nxd4 {[%clk 0:02:53]}  Nf6 {[%clk 0:02:42]} 5. Nc3 {[%clk 0:02:52]}  Nc6 {[%clk 0:02:38]} 6. g3 {[%clk 0:02:46]}  g6 {[%clk 0:02:32]} 7. Bg2 {[%clk 0:02:40]}  Bg7 {[%clk 0:02:31]} 8. O-O {[%clk 0:02:30]}  Bd7 {[%clk 0:02:26]} 9. Re1 {[%clk 0:02:23]}  Nxd4 {[%clk 0:02:20]} 10. Qxd4 {[%clk 0:02:24]}  O-O {[%clk 0:02:17]} 11. Qd3 {[%clk 0:02:07]}  Bc6 {[%clk 0:02:12]} 12. Rb1 {[%clk 0:02:01]}  Re8 {[%clk 0:02:10]} 13. Bg5 {[%clk 0:01:49]}  h6 {[%clk 0:02:08]} 14. Bxf6 {[%clk 0:01:45]}  Bxf6 {[%clk 0:01:54]} 15. b4 {[%clk 0:01:38]}  Bg7 {[%clk 0:01:48]} 16. b5 {[%clk 0:01:34]}  Bd7 {[%clk 0:01:48]} 17. a4 {[%clk 0:01:28]}  Qg5 {[%clk 0:01:34]} 18. Nd5 {[%clk 0:01:19]}  Rac8 {[%clk 0:01:30]} 19. a5 {[%clk 0:00:32]}  c6 {[%clk 0:01:23]} 20. bxc6 {[%clk 0:00:30]}  Bxc6 {[%clk 0:01:24]} 21. a6 {[%clk 0:00:22]}  b6 {[%clk 0:01:23]} 22. c4 {[%clk 0:00:20]}  Qe5 {[%clk 0:01:12]} 23. Rbd1 {[%clk 0:00:19]}  Qb2 {[%clk 0:00:52]} 24. h3 {[%clk 0:00:17]}  Ba4 {[%clk 0:00:41]} 25. Rd2 {[%clk 0:00:17]}  Qb3 {[%clk 0:00:41]} 26. Qxb3 {[%clk 0:00:15]}  Bxb3 {[%clk 0:00:42]} 27. Nb4 {[%clk 0:00:14]}  Bc3 {[%clk 0:00:39]} 28. Rd3 {[%clk 0:00:12]}  Bxe1 {[%clk 0:00:34]} 29. Rxb3 {[%clk 0:00:12]}  Bxb4 {[%clk 0:00:31]} 30. Rxb4 {[%clk 0:00:12]}  Re5 {[%clk 0:00:32]} 31. f3 {[%clk 0:00:11]}  Ra5 {[%clk 0:00:32]} 32. Bf1 {[%clk 0:00:11]}  Rcc5 {[%clk 0:00:29]} 33. Rb3 {[%clk 0:00:11]}  Rxa6 {[%clk 0:00:29]} 34. Rd3 {[%clk 0:00:11]}  Ra1 {[%clk 0:00:27]} 35. Rxd6 {[%clk 0:00:11]}  Rxc4 {[%clk 0:00:28]} 36. Kf2 {[%clk 0:00:12]}  Rc2+ {[%clk 0:00:28]} 37. Be2 {[%clk 0:00:08]}  Raa2 {[%clk 0:00:28]} 38. Rd8+ {[%clk 0:00:09]}  Kg7 {[%clk 0:00:28]} 39. Ke3 {[%clk 0:00:10]}  Rxe2+ {[%clk 0:00:28]} 40. Kf4 {[%clk 0:00:11]}  Ra3 {[%clk 0:00:27]} 41. Rd7 {[%clk 0:00:11]}  Ree3 {[%clk 0:00:27]} 42. Ke5 {[%clk 0:00:11]}  Rxf3 {[%clk 0:00:28]} 0-1


[Site "https://www.chess.com"]

[Event "Titled Tuesday Blitz January 17 Late 2023"]
[White "Khripachenko, Alexander"]
[Black "Coelho, Ramyres Santana"]
[WhiteFideId "54184975"]
[BlackFideId "2120690"]
[WhiteElo "2110"]
[BlackElo "1981"]
[Result "1-0"]
[Round "01"]
[TimeControl "180+2"]
[Date "2023.01.17"]
[WhiteClock "0:01:58"]
[BlackClock "0:00:09"]

1. e3 {[%clk 0:03:00]}  c5 {[%clk 0:02:58]} 2. d4 {[%clk 0:02:59]}  e6 {[%clk 0:02:56]} 3. Bd3 {[%clk 0:02:58]}  Nf6 {[%clk 0:02:55]} 4. Nf3 {[%clk 0:02:59]}  Be7 {[%clk 0:02:55]} 5. O-O {[%clk 0:02:59]}  O-O {[%clk 0:02:55]} 6. Qe2 {[%clk 0:03:00]}  d5 {[%clk 0:02:54]} 7. c3 {[%clk 0:03:00]}  c4 {[%clk 0:02:54]} 8. Bc2 {[%clk 0:03:00]}  Nc6 {[%clk 0:02:55]} 9. Nbd2 {[%clk 0:03:00]}  b5 {[%clk 0:02:54]} 10. e4 {[%clk 0:03:01]}  dxe4 {[%clk 0:02:52]} 11. Nxe4 {[%clk 0:03:00]}  Bb7 {[%clk 0:02:49]} 12. Bf4 {[%clk 0:02:59]}  Nxe4 {[%clk 0:02:41]} 13. Qxe4 {[%clk 0:02:55]}  g6 {[%clk 0:02:40]} 14. Qe3 {[%clk 0:02:54]}  Bf6 {[%clk 0:02:32]} 15. Rad1 {[%clk 0:02:53]}  Ne7 {[%clk 0:02:26]} 16. Ne5 {[%clk 0:02:51]}  Nd5 {[%clk 0:02:21]} 17. Qg3 {[%clk 0:02:49]}  Nxf4 {[%clk 0:02:19]} 18. Qxf4 {[%clk 0:02:48]}  Bxe5 {[%clk 0:02:10]} 19. dxe5 {[%clk 0:02:46]}  Qc7 {[%clk 0:02:02]} 20. h4 {[%clk 0:02:42]}  Qc6 {[%clk 0:02:00]} 21. f3 {[%clk 0:02:40]}  Rad8 {[%clk 0:01:59]} 22. h5 {[%clk 0:02:40]}  Qc5+ {[%clk 0:01:45]} 23. Kh2 {[%clk 0:02:23]}  Qe7 {[%clk 0:01:11]} 24. Rd6 {[%clk 0:02:23]}  f6 {[%clk 0:00:57]} 25. Rxd8 {[%clk 0:02:21]}  Qxd8 {[%clk 0:00:50]} 26. hxg6 {[%clk 0:02:20]}  fxe5 {[%clk 0:00:44]} 27. gxh7+ {[%clk 0:02:17]}  Kh8 {[%clk 0:00:43]} 28. Qxe5+ {[%clk 0:02:16]}  Qf6 {[%clk 0:00:42]} 29. Qxf6+ {[%clk 0:02:16]}  Rxf6 {[%clk 0:00:43]} 30. Re1 {[%clk 0:02:15]}  Bc6 {[%clk 0:00:35]} 31. Re5 {[%clk 0:02:14]}  Be8 {[%clk 0:00:32]} 32. Kg3 {[%clk 0:02:08]}  a6 {[%clk 0:00:29]} 33. Kf2 {[%clk 0:02:08]}  Bg6 {[%clk 0:00:27]} 34. Bxg6 {[%clk 0:02:08]}  Rxg6 {[%clk 0:00:28]} 35. Rc5 {[%clk 0:02:08]}  Kxh7 {[%clk 0:00:25]} 36. Rc6 {[%clk 0:02:05]}  e5 {[%clk 0:00:25]} 37. Rxg6 {[%clk 0:02:04]}  Kxg6 {[%clk 0:00:26]} 38. Ke3 {[%clk 0:02:04]}  Kf5 {[%clk 0:00:26]} 39. g4+ {[%clk 0:02:05]}  Kg5 {[%clk 0:00:22]} 40. Ke4 {[%clk 0:02:05]}  Kf6 {[%clk 0:00:22]} 41. g5+ {[%clk 0:02:05]}  Kxg5 {[%clk 0:00:21]} 42. Kxe5 {[%clk 0:02:04]}  a5 {[%clk 0:00:21]} 43. f4+ {[%clk 0:02:03]}  Kg4 {[%clk 0:00:21]} 44. f5 {[%clk 0:02:03]}  b4 {[%clk 0:00:20]} 45. f6 {[%clk 0:02:04]}  a4 {[%clk 0:00:18]} 46. f7 {[%clk 0:02:04]}  a3 {[%clk 0:00:15]} 47. bxa3 {[%clk 0:02:04]}  b3 {[%clk 0:00:07]} 48. axb3 {[%clk 0:02:03]}  cxb3 {[%clk 0:00:08]} 49. f8=Q {[%clk 0:02:02]}  b2 {[%clk 0:00:09]} 50. Qf4+ {[%clk 0:02:02]}  Kh5 {[%clk 0:00:08]} 51. Qf5+ {[%clk 0:02:02]}  Kh6 {[%clk 0:00:08]} 52. Kf6 {[%clk 0:01:58]}  b1=Q {[%clk 0:00:09]} 53. Qh3# {[%clk 0:01:58]} 1-0


[Site "https://www.chess.com"]

[Event "Titled Tuesday Blitz January 17 Late 2023"]
[White "Fernandez Garcia, Gumersindo"]
[Black "Zampronha, Wladimir Camilo"]
[WhiteFideId "24516740"]
[BlackFideId "2103087"]
[WhiteElo "2160"]
[BlackElo "2176"]
[Result "1-0"]
[Round "01"]
[TimeControl "180+2"]
[Date "2023.01.17"]
[WhiteClock "0:01:23"]
[BlackClock "0:00:32"]

1. e4 {[%clk 0:02:58]}  c5 {[%clk 0:03:00]} 2. c3 {[%clk 0:02:58]}  Nf6 {[%clk 0:02:59]} 3. e5 {[%clk 0:02:58]}  Nd5 {[%clk 0:02:59]} 4. d4 {[%clk 0:02:58]}  cxd4 {[%clk 0:03:00]} 5. Nf3 {[%clk 0:02:58]}  e6 {[%clk 0:03:01]} 6. cxd4 {[%clk 0:02:58]}  b6 {[%clk 0:03:01]} 7. Bd3 {[%clk 0:02:55]}  Be7 {[%clk 0:03:00]} 8. O-O {[%clk 0:02:55]}  O-O {[%clk 0:02:53]} 9. Nbd2 {[%clk 0:02:53]}  Nf4 {[%clk 0:02:43]} 10. Bb1 {[%clk 0:02:44]}  Ba6 {[%clk 0:02:42]} 11. Re1 {[%clk 0:02:44]}  Bd3 {[%clk 0:02:28]} 12. Ne4 {[%clk 0:02:37]}  Bxb1 {[%clk 0:02:23]} 13. Rxb1 {[%clk 0:02:32]}  Ng6 {[%clk 0:02:23]} 14. Bg5 {[%clk 0:02:29]}  Nc6 {[%clk 0:02:09]} 15. h4 {[%clk 0:02:18]}  h6 {[%clk 0:02:08]} 16. Bxe7 {[%clk 0:02:15]}  Qxe7 {[%clk 0:02:06]} 17. g3 {[%clk 0:02:15]}  Qb4 {[%clk 0:01:48]} 18. a3 {[%clk 0:02:08]}  Qa5 {[%clk 0:01:41]} 19. Kg2 {[%clk 0:02:01]}  Nge7 {[%clk 0:01:35]} 20. Qd3 {[%clk 0:01:51]}  Qd5 {[%clk 0:01:16]} 21. b4 {[%clk 0:01:37]}  Rac8 {[%clk 0:01:14]} 22. Nc3 {[%clk 0:01:32]}  Nxb4 {[%clk 0:00:36]} 23. Nxd5 {[%clk 0:01:23]}  Nxd3 {[%clk 0:00:32]} 24. Nxe7+ {[%clk 0:01:23]} 1-0


[Site "https://www.chess.com"]

[Event "Titled Tuesday Blitz January 17 Late 2023"]
[White "Saveliev, Alexei"]
[Black "Herbst, Richard"]
[WhiteFideId "24128546"]
[BlackFideId "2041251"]
[WhiteElo "2385"]
[BlackElo "2120"]
[Result "1-0"]
[Round "01"]
[TimeControl "180+2"]
[Date "2023.01.17"]
[WhiteClock "0:00:18"]
[BlackClock "0:00:02"]

1. c4 {[%clk 0:02:56]}  c6 {[%clk 0:01:15]} 2. Nc3 {[%clk 0:02:53]}  d5 {[%clk 0:01:13]} 3. d4 {[%clk 0:02:53]}  Nf6 {[%clk 0:01:13]} 4. Nf3 {[%clk 0:02:53]}  e6 {[%clk 0:01:13]} 5. cxd5 {[%clk 0:02:53]}  exd5 {[%clk 0:01:04]} 6. Qc2 {[%clk 0:02:52]}  g6 {[%clk 0:01:01]} 7. Bg5 {[%clk 0:02:51]}  Be7 {[%clk 0:00:59]} 8. e3 {[%clk 0:02:51]}  Bf5 {[%clk 0:00:59]} 9. Bd3 {[%clk 0:02:51]}  Bxd3 {[%clk 0:00:59]} 10. Qxd3 {[%clk 0:02:51]}  O-O {[%clk 0:00:54]} 11. O-O {[%clk 0:02:51]}  Re8 {[%clk 0:00:54]} 12. Rab1 {[%clk 0:02:52]}  a5 {[%clk 0:00:53]} 13. Qc2 {[%clk 0:02:52]}  Nbd7 {[%clk 0:00:47]} 14. a3 {[%clk 0:02:51]}  Ne4 {[%clk 0:00:46]} 15. Bxe7 {[%clk 0:02:49]}  Qxe7 {[%clk 0:00:46]} 16. Nxe4 {[%clk 0:02:49]}  Qxe4 {[%clk 0:00:46]} 17. Qxe4 {[%clk 0:02:47]}  Rxe4 {[%clk 0:00:47]} 18. b4 {[%clk 0:02:38]}  axb4 {[%clk 0:00:43]} 19. axb4 {[%clk 0:02:39]}  b5 {[%clk 0:00:41]} 20. Rfc1 {[%clk 0:02:38]}  Re6 {[%clk 0:00:36]} 21. Ra1 {[%clk 0:02:38]}  Rxa1 {[%clk 0:00:35]} 22. Rxa1 {[%clk 0:02:39]}  Nb6 {[%clk 0:00:35]} 23. g4 {[%clk 0:02:34]}  f6 {[%clk 0:00:34]} 24. Kg2 {[%clk 0:02:33]}  Nc4 {[%clk 0:00:35]} 25. Ne1 {[%clk 0:02:25]}  Kf7 {[%clk 0:00:30]} 26. Nd3 {[%clk 0:02:25]}  Re7 {[%clk 0:00:27]} 27. Ra6 {[%clk 0:02:23]}  Rc7 {[%clk 0:00:27]} 28. h4 {[%clk 0:02:14]}  Ke7 {[%clk 0:00:27]} 29. Ra8 {[%clk 0:02:10]}  Kd6 {[%clk 0:00:26]} 30. Kf3 {[%clk 0:02:08]}  Nd2+ {[%clk 0:00:25]} 31. Ke2 {[%clk 0:02:08]}  Nc4 {[%clk 0:00:20]} 32. Nc5 {[%clk 0:02:03]}  Re7 {[%clk 0:00:18]} 33. Rf8 {[%clk 0:01:53]}  Na3 {[%clk 0:00:14]} 34. Kd3 {[%clk 0:01:47]}  Nc4 {[%clk 0:00:10]} 35. Rxf6+ {[%clk 0:01:46]}  Kc7 {[%clk 0:00:10]} 36. Rf8 {[%clk 0:01:45]}  Nd6 {[%clk 0:00:10]} 37. Ra8 {[%clk 0:01:41]}  Nc4 {[%clk 0:00:03]} 38. h5 {[%clk 0:01:24]}  gxh5 {[%clk 0:00:02]} 39. gxh5 {[%clk 0:01:24]}  Nd6 {[%clk 0:00:01]} 40. f3 {[%clk 0:01:19]}  Nc4 {[%clk 0:00:01]} 41. e4 {[%clk 0:01:19]}  dxe4+ {[%clk 0:00:01]} 42. fxe4 {[%clk 0:01:20]}  Nb2+ {[%clk 0:00:01]} 43. Ke3 {[%clk 0:01:19]}  Nc4+ {[%clk 0:00:02]} 44. Kf4 {[%clk 0:01:19]}  Nd6 {[%clk 0:00:02]} 45. e5 {[%clk 0:01:12]}  Nc4 {[%clk 0:00:03]} 46. e6 {[%clk 0:01:03]}  Nb6 {[%clk 0:00:03]} 47. Ra7+ {[%clk 0:00:52]}  Kd6 {[%clk 0:00:03]} 48. Rxe7 {[%clk 0:00:43]}  Kxe7 {[%clk 0:00:04]} 49. Kf5 {[%clk 0:00:38]}  Nd5 {[%clk 0:00:05]} 50. Nd3 {[%clk 0:00:31]}  Ne3+ {[%clk 0:00:05]} 51. Ke5 {[%clk 0:00:30]}  Nd5 {[%clk 0:00:05]} 52. h6 {[%clk 0:00:27]}  Ne3 {[%clk 0:00:06]} 53. Nf4 {[%clk 0:00:25]}  Nc2 {[%clk 0:00:05]} 54. d5 {[%clk 0:00:25]}  cxd5 {[%clk 0:00:03]} 55. Nxd5+ {[%clk 0:00:26]}  Ke8 {[%clk 0:00:02]} 56. Kf6 {[%clk 0:00:23]}  Nd4 {[%clk 0:00:01]} 57. Nc7+ {[%clk 0:00:18]}  Kd8 {[%clk 0:00:02]} 58. e7+ {[%clk 0:00:17]}  Kd7 {[%clk 0:00:02]} 59. e8=Q+ {[%clk 0:00:17]}  Kxc7 {[%clk 0:00:02]} 60. Qe5+ {[%clk 0:00:18]}  Kc6 {[%clk 0:00:02]} 61. Qxd4 {[%clk 0:00:18]} 1-0


[Site "https://www.chess.com"]

[Event "Titled Tuesday Blitz January 17 Late 2023"]
[White "Kohler, Aran"]
[Black "Sebag, Marie"]
[WhiteFideId "1002856"]
[BlackFideId "617822"]
[WhiteElo "2010"]
[BlackElo "2430"]
[Result "0-1"]
[Round "01"]
[TimeControl "180+2"]
[Date "2023.01.17"]
[WhiteClock "0:00:02"]
[BlackClock "0:00:35"]

1. d4 {[%clk 0:02:59]}  Nf6 {[%clk 0:02:56]} 2. Nf3 {[%clk 0:02:58]}  e6 {[%clk 0:02:56]} 3. Bg5 {[%clk 0:02:57]}  h6 {[%clk 0:02:56]} 4. Bh4 {[%clk 0:02:57]}  d5 {[%clk 0:02:54]} 5. Nbd2 {[%clk 0:02:55]}  c5 {[%clk 0:02:54]} 6. e3 {[%clk 0:02:55]}  Nc6 {[%clk 0:02:54]} 7. c3 {[%clk 0:02:55]}  Be7 {[%clk 0:02:54]} 8. Bd3 {[%clk 0:02:54]}  b6 {[%clk 0:02:52]} 9. Ne5 {[%clk 0:02:09]}  Nxe5 {[%clk 0:02:49]} 10. dxe5 {[%clk 0:02:09]}  Nd7 {[%clk 0:02:48]} 11. Bxe7 {[%clk 0:01:52]}  Qxe7 {[%clk 0:02:48]} 12. f4 {[%clk 0:01:45]}  Qh4+ {[%clk 0:02:47]} 13. g3 {[%clk 0:01:44]}  Qh3 {[%clk 0:02:46]} 14. Qf3 {[%clk 0:01:34]}  Bb7 {[%clk 0:02:44]} 15. O-O-O {[%clk 0:01:33]}  O-O-O {[%clk 0:02:40]} 16. e4 {[%clk 0:01:22]}  g5 {[%clk 0:02:32]} 17. Bf1 {[%clk 0:01:07]}  g4 {[%clk 0:02:10]} 18. Bxh3 {[%clk 0:01:05]}  gxf3 {[%clk 0:02:10]} 19. Nxf3 {[%clk 0:01:04]}  dxe4 {[%clk 0:02:09]} 20. Nh4 {[%clk 0:01:02]}  c4 {[%clk 0:02:07]} 21. Rd4 {[%clk 0:00:46]}  b5 {[%clk 0:02:01]} 22. Rhd1 {[%clk 0:00:44]}  Kc7 {[%clk 0:01:50]} 23. Bg2 {[%clk 0:00:43]}  Nc5 {[%clk 0:01:49]} 24. Rxd8 {[%clk 0:00:43]}  Rxd8 {[%clk 0:01:48]} 25. Rxd8 {[%clk 0:00:43]}  Kxd8 {[%clk 0:01:48]} 26. f5 {[%clk 0:00:35]}  Nd3+ {[%clk 0:01:42]} 27. Kc2 {[%clk 0:00:34]}  Nxe5 {[%clk 0:01:41]} 28. fxe6 {[%clk 0:00:32]}  fxe6 {[%clk 0:01:41]} 29. b3 {[%clk 0:00:22]}  Ke7 {[%clk 0:01:39]} 30. Bf1 {[%clk 0:00:19]}  Bd5 {[%clk 0:01:30]} 31. Be2 {[%clk 0:00:19]}  a5 {[%clk 0:01:24]} 32. Ng2 {[%clk 0:00:18]}  Nd3 {[%clk 0:01:21]} 33. Ne3 {[%clk 0:00:17]}  Kd6 {[%clk 0:01:20]} 34. bxc4 {[%clk 0:00:16]}  bxc4 {[%clk 0:01:20]} 35. h4 {[%clk 0:00:14]}  Ke7 {[%clk 0:01:03]} 36. g4 {[%clk 0:00:13]}  Kf6 {[%clk 0:01:03]} 37. Bxd3 {[%clk 0:00:13]}  cxd3+ {[%clk 0:01:01]} 38. Kd2 {[%clk 0:00:13]}  Bxa2 {[%clk 0:01:00]} 39. c4 {[%clk 0:00:10]}  a4 {[%clk 0:00:59]} 40. Kc3 {[%clk 0:00:10]}  Bb3 {[%clk 0:00:54]} 41. c5 {[%clk 0:00:10]}  Ke7 {[%clk 0:00:48]} 42. g5 {[%clk 0:00:10]}  hxg5 {[%clk 0:00:48]} 43. hxg5 {[%clk 0:00:10]}  e5 {[%clk 0:00:46]} 44. g6 {[%clk 0:00:10]}  Kf6 {[%clk 0:00:41]} 45. c6 {[%clk 0:00:08]}  Be6 {[%clk 0:00:39]} 46. Nd5+ {[%clk 0:00:02]}  Bxd5 {[%clk 0:00:35]} 0-1


[Site "https://www.chess.com"]